fUSD/lending_fUSD_20260508
["ID","MTS","AMOUNT","RATE_DAILY","PERIOD"]
[421832975,1778194237000,-900.0,0.000135,4]
[421832972,1778194237000,-2366394.51395125,0.00013412,2]
[421832973,1778194237000,-235.42987416,0.00013418,2]
[421832971,1778194237000,-6021.21035833,0.00013412,2]
[421832981,1778194237000,-299.99,0.00013518,2]
[421832984,1778194237000,-4164.2104,0.00013555,2]
[421832985,1778194237000,-98975.9055,0.00013555,2]
[421832982,1778194237000,-999.99,0.00013518,2]
[421833000,1778194237000,-2800.0,0.000137,5]
[421832983,1778194237000,-150.99,0.00013518,2]
[421832998,1778194237000,-150.0,0.00013699,2]
[421832996,1778194237000,-200.0,0.00013699,2]
[421832995,1778194237000,-166.66,0.00013699,2]
[421832997,1778194237000,-963.32,0.00013699,2]
[421832993,1778194237000,-904.75,0.00013627,2]
[421833001,1778194237000,-500.0,0.000137,5]
[421832990,1778194237000,-166.78470276,0.00013573,2]
[421832989,1778194237000,-500.0,0.00013573,2]
[421832994,1778194237000,-1680.0,0.00013684,2]
[421832988,1778194237000,-172.38116278,0.00013573,2]
[421832999,1778194237000,-1000.0,0.00013699,2]
[421832992,1778194237000,-500.0,0.00013624,2]
[421832991,1778194237000,-1800.0,0.000136,4]
[421833041,1778194238000,-500.0,0.00013887,2]
[421833049,1778194238000,-500.0,0.00013887,2]
[421833044,1778194238000,-500.0,0.00013887,2]
[421833050,1778194238000,-500.0,0.00013887,2]
[421833046,1778194238000,-500.0,0.00013887,2]
[421833039,1778194238000,-500.0,0.00013887,2]
[421833037,1778194238000,-500.0,0.00013887,2]
[421833038,1778194238000,-500.0,0.00013887,2]
[421833043,1778194238000,-500.0,0.00013887,2]
[421833048,1778194238000,-500.0,0.00013887,2]
[421833040,1778194238000,-500.0,0.00013887,2]
[421833042,1778194238000,-500.0,0.00013887,2]
[421833047,1778194238000,-500.0,0.00013887,2]
[421833053,1778194238000,-500.0,0.00013887,2]
[421833062,1778194238000,-350.48200501,0.00013887,2]
[421833052,1778194238000,-500.0,0.00013887,2]
[421833063,1778194238000,-500.0,0.00013887,2]
[421833064,1778194238000,-500.0,0.00013887,2]
[421833051,1778194238000,-500.0,0.00013887,2]
[421833054,1778194238000,-500.0,0.00013887,2]
[421833026,1778194238000,-500.0,0.00013873,2]
[421833060,1778194238000,-500.0,0.00013887,2]
[421833055,1778194238000,-500.0,0.00013887,2]
[421833056,1778194238000,-500.0,0.00013887,2]
[421833057,1778194238000,-500.0,0.00013887,2]
[421833059,1778194238000,-500.0,0.00013887,2]
[421833058,1778194238000,-500.0,0.00013887,2]
[421833061,1778194238000,-500.0,0.00013887,2]
[421833045,1778194238000,-500.0,0.00013887,2]
[421833028,1778194238000,-500.0,0.00013887,2]
[421833036,1778194238000,-500.0,0.00013887,2]
[421833027,1778194238000,-500.0,0.00013873,2]
[421833065,1778194238000,-500.0,0.00013887,2]
[421833004,1778194238000,-500.0,0.00013773,2]
[421833005,1778194238000,-396.56341558,0.00013773,2]
[421833002,1778194238000,-420.0,0.00013701,2]
[421833003,1778194238000,-500.0,0.00013773,2]
[421833011,1778194238000,-5000.0,0.0001379,2]
[421833006,1778194238000,-500.0,0.00013773,2]
[421833008,1778194238000,-2500.0,0.00013773,2]
[421833007,1778194238000,-500.0,0.00013773,2]
[421833009,1778194238000,-4564.215,0.0001379,2]
[421833012,1778194238000,-281.2305762,0.00013796,2]
[421833015,1778194238000,-166.66,0.00013814,2]
[421833014,1778194238000,-3700.0,0.000138,5]
[421833018,1778194238000,-500.0,0.00013873,2]
[421833030,1778194238000,-320.41563003,0.00013887,2]
[421833023,1778194238000,-163.57461107,0.00013873,2]
[421833016,1778194238000,-166.66,0.00013836,2]
[421833017,1778194238000,-205.5889821,0.00013873,2]
[421833019,1778194238000,-168.31790922,0.00013873,2]
[421833020,1778194238000,-500.0,0.00013873,2]
[421833021,1778194238000,-500.0,0.00013873,2]
[421833022,1778194238000,-170.13489997,0.00013873,2]
[421833025,1778194238000,-500.0,0.00013873,2]
[421833031,1778194238000,-232.25,0.00013887,2]
[421833029,1778194238000,-500.0,0.00013887,2]
[421833034,1778194238000,-500.0,0.00013887,2]
[421833033,1778194238000,-500.0,0.00013887,2]
[421833024,1778194238000,-500.0,0.00013873,2]
[421833032,1778194238000,-500.0,0.00013887,2]
[421833035,1778194238000,-500.0,0.00013887,2]
[421833013,1778194238000,-1171.41922632,0.00013797,2]
[421833071,1778194238000,-500.0,0.00013887,2]
[421833075,1778194238000,-500.0,0.00013887,2]
[421833076,1778194238000,-500.0,0.00013887,2]
[421833097,1778194238000,-500.0,0.00013889,2]
[421833100,1778194238000,-500.0,0.00013889,2]
[421833105,1778194238000,-500.0,0.00013889,2]
[421833115,1778194238000,-500.0,0.00013889,2]
[421833117,1778194238000,-500.0,0.00013889,2]
[421833108,1778194238000,-500.0,0.00013889,2]
[421833116,1778194238000,-500.0,0.00013889,2]
[421833110,1778194238000,-500.0,0.00013889,2]
[421833106,1778194238000,-500.0,0.00013889,2]
[421833107,1778194238000,-500.0,0.00013889,2]
[421833112,1778194238000,-500.0,0.00013889,2]
[421833114,1778194238000,-500.0,0.00013889,2]
[421833109,1778194238000,-500.0,0.00013889,2]
[421833111,1778194238000,-500.0,0.00013889,2]
[421833113,1778194238000,-500.0,0.00013889,2]
[421833118,1778194238000,-500.0,0.00013889,2]
[421833129,1778194238000,-500.0,0.00013889,2]
[421833123,1778194238000,-500.0,0.00013889,2]
[421833120,1778194238000,-500.0,0.00013889,2]
[421833119,1778194238000,-500.0,0.00013889,2]
[421833122,1778194238000,-500.0,0.00013889,2]
[421833130,1778194238000,-500.0,0.00013889,2]
[421833121,1778194238000,-500.0,0.00013889,2]
[421833126,1778194238000,-500.0,0.00013889,2]
[421833125,1778194238000,-500.0,0.00013889,2]
[421833066,1778194238000,-500.0,0.00013887,2]
[421833127,1778194238000,-500.0,0.00013889,2]
[421833124,1778194238000,-500.0,0.00013889,2]
[421833131,1778194238000,-500.0,0.00013889,2]
[421833098,1778194238000,-500.0,0.00013889,2]
[421833099,1778194238000,-500.0,0.00013889,2]
[421833128,1778194238000,-500.0,0.00013889,2]
[421833102,1778194238000,-500.0,0.00013889,2]
[421833101,1778194238000,-500.0,0.00013889,2]
[421833070,1778194238000,-500.0,0.00013887,2]
[421833069,1778194238000,-500.0,0.00013887,2]
[421833068,1778194238000,-500.0,0.00013887,2]
[421833077,1778194238000,-250.0,0.00013887,2]
[421833067,1778194238000,-500.0,0.00013887,2]
[421833074,1778194238000,-500.0,0.00013887,2]
[421833072,1778194238000,-500.0,0.00013887,2]
[421833090,1778194238000,-500.0,0.00013889,2]
[421833089,1778194238000,-500.0,0.00013889,2]
[421833079,1778194238000,-500.0,0.00013887,2]
[421833091,1778194238000,-500.0,0.00013889,2]
[421833078,1778194238000,-500.0,0.00013887,2]
[421833080,1778194238000,-500.0,0.00013887,2]
[421833073,1778194238000,-500.0,0.00013887,2]
[421833082,1778194238000,-500.0,0.00013887,2]
[421833081,1778194238000,-500.0,0.00013887,2]
[421833094,1778194238000,-500.0,0.00013889,2]
[421833104,1778194238000,-500.0,0.00013889,2]
[421833092,1778194238000,-500.0,0.00013889,2]
[421833103,1778194238000,-500.0,0.00013889,2]
[421833093,1778194238000,-500.0,0.00013889,2]
[421833095,1778194238000,-500.0,0.00013889,2]
[421833084,1778194238000,-500.0,0.00013889,2]
[421833087,1778194238000,-500.0,0.00013889,2]
[421833088,1778194238000,-500.0,0.00013889,2]
[421833096,1778194238000,-500.0,0.00013889,2]
[421833085,1778194238000,-500.0,0.00013889,2]
[421833086,1778194238000,-500.0,0.00013889,2]
[421833083,1778194238000,-500.0,0.00013889,2]
[421833160,1778194239000,-500.0,0.00013889,2]
[421833172,1778194239000,-150.0,0.00013986,2]
[421833171,1778194239000,-500.0,0.00013974,5]
[421833164,1778194239000,-500.0,0.00013896,2]
[421833162,1778194239000,-300.48,0.0001389,2]
[421833167,1778194239000,-133272.25271463,0.00013897,2]
[421833163,1778194239000,-500.0,0.00013896,2]
[421833169,1778194239000,-904.75,0.00013944,2]
[421833170,1778194239000,-166.66,0.00013973,2]
[421833168,1778194239000,-4600.0,0.000139,5]
[421833166,1778194239000,-500.0,0.00013896,2]
[421833165,1778194239000,-623.52,0.00013896,2]
[421833182,1778194239000,-166.66,0.0001411,2]
[421833175,1778194239000,-150.0,0.00013986,2]
[421833176,1778194239000,-150.0,0.00013986,2]
[421833173,1778194239000,-344.51,0.00013986,2]
[421833174,1778194239000,-304.2,0.00013986,2]
[421833178,1778194239000,-213.56,0.00013986,2]
[421833183,1778194239000,-1000.0,0.00014121,2]
[421833179,1778194239000,-285.24,0.00013986,2]
[421833180,1778194239000,-2000.0,0.00013996,2]
[421833197,1778194239000,-512.70147277,0.000144,2]
[421833187,1778194239000,-166.66,0.00014247,2]
[421833161,1778194239000,-345.17480026,0.00013889,2]
[421833181,1778194239000,-250.0,0.00014,2]
[421833159,1778194239000,-500.0,0.00013889,2]
[421833147,1778194239000,-500.0,0.00013889,2]
[421833153,1778194239000,-165.80729146,0.00013889,2]
[421833186,1778194239000,-273.32,0.00014141,2]
[421833132,1778194239000,-522.02981736,0.00013889,2]
[421833136,1778194239000,-623.52,0.00013889,2]
[421833134,1778194239000,-623.52,0.00013889,2]
[421833135,1778194239000,-623.52,0.00013889,2]
[421833133,1778194239000,-623.52,0.00013889,2]
[421833138,1778194239000,-623.52,0.00013889,2]
[421833148,1778194239000,-500.0,0.00013889,2]
[421833141,1778194239000,-623.52,0.00013889,2]
[421833139,1778194239000,-623.52,0.00013889,2]
[421833137,1778194239000,-623.52,0.00013889,2]
[421833140,1778194239000,-623.52,0.00013889,2]
[421833142,1778194239000,-623.52,0.00013889,2]
[421833145,1778194239000,-500.0,0.00013889,2]
[421833144,1778194239000,-500.0,0.00013889,2]
[421833146,1778194239000,-500.0,0.00013889,2]
[421833143,1778194239000,-500.0,0.00013889,2]
[421833149,1778194239000,-500.0,0.00013889,2]
[421833152,1778194239000,-500.0,0.00013889,2]
[421833151,1778194239000,-500.0,0.00013889,2]
[421833156,1778194239000,-500.0,0.00013889,2]
[421833150,1778194239000,-500.0,0.00013889,2]
[421833154,1778194239000,-295.93198746,0.00013889,2]
[421833158,1778194239000,-500.0,0.00013889,2]
[421833155,1778194239000,-500.0,0.00013889,2]
[421833157,1778194239000,-393.68988301,0.00013889,2]
[421833196,1778194239000,-166.66,0.00014384,2]
[421833184,1778194239000,-1000.0,0.00014121,2]
[421833190,1778194239000,-238.95,0.0001428,2]
[421833218,1778194239000,-500.0,0.00014499,2]
[421833220,1778194239000,-500.0,0.00014499,2]
[421833221,1778194239000,-500.0,0.00014499,2]
[421833223,1778194239000,-500.0,0.00014499,2]
[421833225,1778194239000,-500.0,0.00014499,2]
[421833227,1778194239000,-500.0,0.00014499,2]
[421833226,1778194239000,-500.0,0.00014499,2]
[421833224,1778194239000,-500.0,0.00014499,2]
[421833235,1778194239000,-500.0,0.00014499,2]
[421833228,1778194239000,-500.0,0.00014499,2]
[421833231,1778194239000,-500.0,0.00014499,2]
[421833232,1778194239000,-500.0,0.00014499,2]
[421833234,1778194239000,-500.0,0.00014499,2]
[421833233,1778194239000,-500.0,0.00014499,2]
[421833237,1778194239000,-623.52,0.00014499,2]
[421833247,1778194239000,-33139.5584,0.000145,2]
[421833236,1778194239000,-500.0,0.00014499,2]
[421833238,1778194239000,-623.52,0.00014499,2]
[421833240,1778194239000,-623.52,0.00014499,2]
[421833239,1778194239000,-623.52,0.00014499,2]
[421833243,1778194239000,-500.0,0.00014499,2]
[421833245,1778194239000,-2000.0,0.000145,2]
[421833246,1778194239000,-497.45,0.000145,2]
[421833241,1778194239000,-623.52,0.00014499,2]
[421833185,1778194239000,-502.04883511,0.00014121,2]
[421833216,1778194239000,-500.0,0.00014499,2]
[421833214,1778194239000,-500.0,0.00014493,2]
[421833244,1778194239000,-216.08852993,0.00014499,2]
[421833217,1778194239000,-500.0,0.00014499,2]
[421833219,1778194239000,-500.0,0.00014499,2]
[421833193,1778194239000,-500.0,0.00014321,2]
[421833192,1778194239000,-499.53639878,0.00014321,2]
[421833194,1778194239000,-1000.0,0.00014321,2]
[421833242,1778194239000,-623.52,0.00014499,2]
[421833189,1778194239000,-166.66,0.0001427,2]
[421833191,1778194239000,-1068.05268496,0.00014321,2]
[421833195,1778194239000,-3459.02565465,0.00014376,2]
[421833200,1778194239000,-5884.76430476,0.000144,2]
[421833201,1778194239000,-450.69784285,0.000144,2]
[421833198,1778194239000,-10000.0,0.000144,2]
[421833209,1778194239000,-529.22196783,0.00014472,2]
[421833206,1778194239000,-702.40725895,0.00014421,2]
[421833188,1778194239000,-500.0,0.00014248,5]
[421833202,1778194239000,-500.0,0.00014421,2]
[421833204,1778194239000,-410.02071293,0.00014421,2]
[421833213,1778194239000,-623.52,0.00014493,2]
[421833222,1778194239000,-500.0,0.00014499,2]
[421833212,1778194239000,-500.0,0.00014493,2]
[421833207,1778194239000,-1000.0,0.00014421,2]
[421833211,1778194239000,-500.0,0.00014493,2]
[421833205,1778194239000,-443.17533034,0.00014421,2]
[421833203,1778194239000,-500.64361665,0.00014421,2]
[421833199,1778194239000,-1149.295504,0.000144,2]
[421833210,1778194239000,-500.0,0.00014473,2]
[421833208,1778194239000,-500.0,0.00014472,2]
[421833215,1778194239000,-94005.73117301,0.00014493,2]
[421833271,1778194240000,-433.09700552,0.00014796,5]
[421833277,1778194240000,-506.6446677,0.00014799,2]
[421833284,1778194240000,-539.16,0.00014799,2]
[421833272,1778194240000,-500.0,0.00014798,2]
[421833275,1778194240000,-1000.0,0.00014799,2]
[421833280,1778194240000,-539.16,0.00014799,2]
[421833282,1778194240000,-539.16,0.00014799,2]
[421833279,1778194240000,-539.16,0.00014799,2]
[421833281,1778194240000,-539.16,0.00014799,2]
[421833289,1778194240000,-539.16,0.00014799,2]
[421833291,1778194240000,-539.16,0.00014799,2]
[421833287,1778194240000,-539.16,0.00014799,2]
[421833286,1778194240000,-500.0,0.00014799,2]
[421833288,1778194240000,-500.0,0.00014799,2]
[421833285,1778194240000,-539.16,0.00014799,2]
[421833290,1778194240000,-500.0,0.00014799,2]
[421833293,1778194240000,-500.0,0.00014799,2]
[421833292,1778194240000,-500.0,0.00014799,2]
[421833301,1778194240000,-500.0,0.00014799,2]
[421833302,1778194240000,-500.0,0.00014799,2]
[421833273,1778194240000,-440.84777483,0.00014798,2]
[421833294,1778194240000,-500.0,0.00014799,2]
[421833283,1778194240000,-539.16,0.00014799,2]
[421833278,1778194240000,-539.16,0.00014799,2]
[421833260,1778194240000,-839.28,0.00014699,2]
[421833276,1778194240000,-1000.0,0.00014799,2]
[421833299,1778194240000,-500.0,0.00014799,2]
[421833248,1778194240000,-207.2677,0.000145,2]
[421833249,1778194240000,-500.0,0.00014522,5]
[421833250,1778194240000,-1600.0,0.00014536,2]
[421833258,1778194240000,-500.0,0.00014699,2]
[421833257,1778194240000,-539.16,0.00014699,2]
[421833252,1778194240000,-255.0,0.00014621,2]
[421833253,1778194240000,-500.0,0.00014637,2]
[421833251,1778194240000,-262.30635,0.00014566,2]
[421833254,1778194240000,-1500.0,0.00014668,2]
[421833255,1778194240000,-500.0,0.00014668,2]
[421833256,1778194240000,-362.17585414,0.00014669,2]
[421833259,1778194240000,-500.0,0.00014699,2]
[421833261,1778194240000,-500.0,0.00014699,2]
[421833266,1778194240000,-500.0,0.00014699,2]
[421833263,1778194240000,-544.55,0.00014699,2]
[421833262,1778194240000,-500.0,0.00014699,2]
[421833268,1778194240000,-166.66,0.00014726,2]
[421833264,1778194240000,-500.0,0.00014699,2]
[421833265,1778194240000,-500.0,0.00014699,2]
[421833267,1778194240000,-500.0,0.00014699,2]
[421833269,1778194240000,-503.58094682,0.00014773,2]
[421833270,1778194240000,-2185.25453914,0.00014781,2]
[421833274,1778194240000,-623.52,0.00014798,2]
[421833298,1778194240000,-500.0,0.00014799,2]
[421833297,1778194240000,-500.0,0.00014799,2]
[421833332,1778194240000,-500.0,0.00014799,2]
[421833338,1778194240000,-500.0,0.00014799,2]
[421833328,1778194240000,-500.0,0.00014799,2]
[421833339,1778194240000,-500.0,0.00014799,2]
[421833336,1778194240000,-500.0,0.00014799,2]
[421833329,1778194240000,-500.0,0.00014799,2]
[421833326,1778194240000,-500.0,0.00014799,2]
[421833334,1778194240000,-500.0,0.00014799,2]
[421833330,1778194240000,-500.0,0.00014799,2]
[421833333,1778194240000,-500.0,0.00014799,2]
[421833335,1778194240000,-500.0,0.00014799,2]
[421833340,1778194240000,-500.0,0.00014799,2]
[421833342,1778194240000,-500.0,0.00014799,2]
[421833341,1778194240000,-500.0,0.00014799,2]
[421833343,1778194240000,-500.0,0.00014799,2]
[421833344,1778194240000,-544.55,0.00014799,2]
[421833346,1778194240000,-544.55,0.00014799,2]
[421833345,1778194240000,-544.55,0.00014799,2]
[421833347,1778194240000,-544.55,0.00014799,2]
[421833350,1778194240000,-544.55,0.00014799,2]
[421833351,1778194240000,-544.55,0.00014799,2]
[421833348,1778194240000,-544.55,0.00014799,2]
[421833349,1778194240000,-544.55,0.00014799,2]
[421833295,1778194240000,-500.0,0.00014799,2]
[421833337,1778194240000,-500.0,0.00014799,2]
[421833327,1778194240000,-500.0,0.00014799,2]
[421833331,1778194240000,-500.0,0.00014799,2]
[421833321,1778194240000,-839.28,0.00014799,2]
[421833300,1778194240000,-500.0,0.00014799,2]
[421833296,1778194240000,-500.0,0.00014799,2]
[421833314,1778194240000,-839.28,0.00014799,2]
[421833312,1778194240000,-839.28,0.00014799,2]
[421833313,1778194240000,-839.28,0.00014799,2]
[421833303,1778194240000,-500.0,0.00014799,2]
[421833304,1778194240000,-500.0,0.00014799,2]
[421833322,1778194240000,-500.0,0.00014799,2]
[421833311,1778194240000,-839.28,0.00014799,2]
[421833308,1778194240000,-500.0,0.00014799,2]
[421833309,1778194240000,-500.0,0.00014799,2]
[421833307,1778194240000,-500.0,0.00014799,2]
[421833305,1778194240000,-500.0,0.00014799,2]
[421833324,1778194240000,-500.0,0.00014799,2]
[421833310,1778194240000,-500.0,0.00014799,2]
[421833315,1778194240000,-839.28,0.00014799,2]
[421833318,1778194240000,-839.28,0.00014799,2]
[421833316,1778194240000,-839.28,0.00014799,2]
[421833317,1778194240000,-839.28,0.00014799,2]
[421833319,1778194240000,-839.28,0.00014799,2]
[421833320,1778194240000,-839.28,0.00014799,2]
[421833323,1778194240000,-500.0,0.00014799,2]
[421833325,1778194240000,-500.0,0.00014799,2]
[421833306,1778194240000,-500.0,0.00014799,2]
[421833391,1778194241000,-273.32,0.00014848,2]
[421833384,1778194241000,-500.0,0.00014799,2]
[421833381,1778194241000,-500.0,0.00014799,2]
[421833393,1778194241000,-1215.32218827,0.00014868,2]
[421833392,1778194241000,-1533.24944554,0.00014864,2]
[421833388,1778194241000,-500.0,0.00014799,2]
[421833386,1778194241000,-500.0,0.00014799,2]
[421833389,1778194241000,-500.0,0.00014799,2]
[421833385,1778194241000,-500.0,0.00014799,2]
[421833387,1778194241000,-500.0,0.00014799,2]
[421833394,1778194241000,-539.16,0.00014898,2]
[421833390,1778194241000,-500.0,0.00014799,2]
[421833395,1778194241000,-539.16,0.00014898,2]
[421833417,1778194241000,-500.0,0.00014898,2]
[421833398,1778194241000,-539.16,0.00014898,2]
[421833399,1778194241000,-539.16,0.00014898,2]
[421833404,1778194241000,-500.0,0.00014898,2]
[421833397,1778194241000,-539.16,0.00014898,2]
[421833400,1778194241000,-500.0,0.00014898,2]
[421833403,1778194241000,-500.0,0.00014898,2]
[421833402,1778194241000,-645.94484327,0.00014898,2]
[421833401,1778194241000,-500.0,0.00014898,2]
[421833406,1778194241000,-500.0,0.00014898,2]
[421833416,1778194241000,-500.0,0.00014898,2]
[421833405,1778194241000,-500.0,0.00014898,2]
[421833382,1778194241000,-500.0,0.00014799,2]
[421833396,1778194241000,-539.16,0.00014898,2]
[421833383,1778194241000,-500.0,0.00014799,2]
[421833355,1778194241000,-500.0,0.00014799,2]
[421833377,1778194241000,-500.0,0.00014799,2]
[421833353,1778194241000,-544.55,0.00014799,2]
[421833352,1778194241000,-544.55,0.00014799,2]
[421833358,1778194241000,-500.0,0.00014799,2]
[421833365,1778194241000,-500.0,0.00014799,2]
[421833356,1778194241000,-500.0,0.00014799,2]
[421833366,1778194241000,-500.0,0.00014799,2]
[421833354,1778194241000,-544.55,0.00014799,2]
[421833357,1778194241000,-425.97163219,0.00014799,2]
[421833359,1778194241000,-500.0,0.00014799,2]
[421833364,1778194241000,-500.0,0.00014799,2]
[421833360,1778194241000,-500.0,0.00014799,2]
[421833363,1778194241000,-500.0,0.00014799,2]
[421833380,1778194241000,-500.0,0.00014799,2]
[421833362,1778194241000,-500.0,0.00014799,2]
[421833367,1778194241000,-500.0,0.00014799,2]
[421833370,1778194241000,-500.0,0.00014799,2]
[421833374,1778194241000,-500.0,0.00014799,2]
[421833379,1778194241000,-377.99793923,0.00014799,2]
[421833369,1778194241000,-500.0,0.00014799,2]
[421833376,1778194241000,-500.0,0.00014799,2]
[421833368,1778194241000,-500.0,0.00014799,2]
[421833371,1778194241000,-500.0,0.00014799,2]
[421833372,1778194241000,-500.0,0.00014799,2]
[421833375,1778194241000,-500.0,0.00014799,2]
[421833373,1778194241000,-500.0,0.00014799,2]
[421833378,1778194241000,-500.0,0.00014799,2]
[421833361,1778194241000,-500.0,0.00014799,2]
[421833407,1778194241000,-500.0,0.00014898,2]
[421833462,1778194241000,-544.55,0.00016018,2]
[421833411,1778194241000,-839.28,0.00014898,2]
[421833442,1778194241000,-451.47310968,0.00014898,2]
[421833447,1778194241000,-166.66,0.00015182,2]
[421833452,1778194241000,-273.32,0.00015555,2]
[421833446,1778194241000,-2351.0,0.00015052,2]
[421833450,1778194241000,-2000.0,0.00015516,2]
[421833444,1778194241000,-1000.0,0.00015021,2]
[421833451,1778194241000,-2000.0,0.00015551,2]
[421833445,1778194241000,-587.0,0.00015034,2]
[421833449,1778194241000,-3459.02565465,0.00015434,2]
[421833448,1778194241000,-1011.85848826,0.00015216,2]
[421833454,1778194241000,-166.66,0.00015638,2]
[421833456,1778194241000,-300.0,0.00016,2]
[421833443,1778194241000,-1500.0,0.00014968,2]
[421833458,1778194241000,-539.16,0.00016018,2]
[421833453,1778194241000,-510.66718389,0.00015568,2]
[421833457,1778194241000,-186.36034437,0.00016,2]
[421833460,1778194241000,-839.28,0.00016018,2]
[421833459,1778194241000,-500.0,0.00016018,2]
[421833461,1778194241000,-500.0,0.00016018,2]
[421833466,1778194241000,-1600.0,0.00016151,2]
[421833464,1778194241000,-2500.0,0.00016064,2]
[421833465,1778194241000,-166.66,0.00016094,2]
[421833468,1778194241000,-250.0,0.00016384,2]
[421833463,1778194241000,-500.0,0.00016018,2]
[421833467,1778194241000,-273.32,0.00016262,2]
[421833408,1778194241000,-500.0,0.00014898,2]
[421833455,1778194241000,-433.0,0.00015835,2]
[421833441,1778194241000,-500.0,0.00014898,2]
[421833469,1778194241000,-3000.17,0.00016438,2]
[421833439,1778194241000,-500.0,0.00014898,2]
[421833438,1778194241000,-500.0,0.00014898,2]
[421833409,1778194241000,-839.28,0.00014898,2]
[421833414,1778194241000,-839.28,0.00014898,2]
[421833410,1778194241000,-839.28,0.00014898,2]
[421833412,1778194241000,-839.28,0.00014898,2]
[421833415,1778194241000,-500.0,0.00014898,2]
[421833418,1778194241000,-500.0,0.00014898,2]
[421833420,1778194241000,-500.0,0.00014898,2]
[421833419,1778194241000,-500.0,0.00014898,2]
[421833423,1778194241000,-500.0,0.00014898,2]
[421833425,1778194241000,-544.55,0.00014898,2]
[421833424,1778194241000,-167.18268562,0.00014898,2]
[421833426,1778194241000,-544.55,0.00014898,2]
[421833413,1778194241000,-839.28,0.00014898,2]
[421833422,1778194241000,-500.0,0.00014898,2]
[421833428,1778194241000,-544.55,0.00014898,2]
[421833437,1778194241000,-500.0,0.00014898,2]
[421833436,1778194241000,-500.0,0.00014898,2]
[421833434,1778194241000,-500.0,0.00014898,2]
[421833431,1778194241000,-500.0,0.00014898,2]
[421833432,1778194241000,-500.0,0.00014898,2]
[421833435,1778194241000,-500.0,0.00014898,2]
[421833440,1778194241000,-500.0,0.00014898,2]
[421833430,1778194241000,-544.55,0.00014898,2]
[421833429,1778194241000,-544.55,0.00014898,2]
[421833421,1778194241000,-500.0,0.00014898,2]
[421833427,1778194241000,-544.55,0.00014898,2]
[421833433,1778194241000,-500.0,0.00014898,2]
[421833509,1778194242000,-206.14996025,0.00016447,2]
[421833507,1778194242000,-500.0,0.00016447,2]
[421833508,1778194242000,-500.0,0.00016447,2]
[421833518,1778194242000,-500.0,0.00016986,2]
[421833503,1778194242000,-544.55,0.00016447,2]
[421833504,1778194242000,-544.64637527,0.00016447,2]
[421833496,1778194242000,-839.43277871,0.00016447,2]
[421833500,1778194242000,-544.55,0.00016447,2]
[421833506,1778194242000,-500.0,0.00016447,2]
[421833501,1778194242000,-544.55,0.00016447,2]
[421833505,1778194242000,-500.0,0.00016447,2]
[421833510,1778194242000,-823.0,0.00016495,2]
[421833516,1778194242000,-1000.0,0.00016986,2]